[Event "Mistrovství Čech mládeže 2023 - HD14"]
[Site "Harrachov, Czech Republic"]
[Date "2023.10.27"]
[Round "8.15"]
[White "Bělaška, Adam"]
[Black "Tejnor, Martin"]
[Result "1/2-1/2"]
[TimeControl "90m + 30s"]
[WhiteElo "1503"]
[BlackElo "1418"]

1. e4 {[%clk 01:30:53]} {[%emt 00:00:06]} c5 {[%clk 01:30:56]} {[%emt
00:00:05]} 2. Nf3 {[%clk 01:31:19]} {[%emt 00:00:04]} d6 {[%clk 01:31:22]}
{[%emt 00:00:04]} 3. c3 {[%clk 01:31:35]} {[%emt 00:00:14]} Nf6 {[%clk
01:28:35]} {[%emt 00:03:17]} 4. Be2 {[%clk 01:31:26]} {[%emt 00:00:37]} Nc6
{[%clk 01:28:27]} {[%emt 00:00:40]} 5. d4 {[%clk 01:30:11]} {[%emt 00:01:45]}
cxd4 {[%clk 01:28:46]} {[%emt 00:00:11]} 6. cxd4 {[%clk 01:30:36]} {[%emt
00:00:05]} e6 {[%clk 01:19:28]} {[%emt 00:09:48]} 7. Nc3 {[%clk 01:30:01]}
{[%emt 00:01:05]} Be7 {[%clk 01:19:24]} {[%emt 00:00:35]} 8. O-O {[%clk
01:30:10]} {[%emt 00:00:21]} O-O {[%clk 01:19:18]} {[%emt 00:00:36]} 9. Be3
{[%clk 01:29:53]} {[%emt 00:00:46]} b6 {[%clk 01:08:50]} {[%emt 00:10:59]} 10.
Qc2 {[%clk 01:22:21]} {[%emt 00:08:02]} Bb7 {[%clk 01:08:24]} {[%emt 00:00:57]}
11. a3 {[%clk 01:20:00]} {[%emt 00:02:51]} Rc8 {[%clk 01:08:24]} {[%emt
00:00:29]} 12. Rfd1 {[%clk 01:19:46]} {[%emt 00:00:44]} Qc7 {[%clk 01:06:48]}
{[%emt 00:02:07]} 13. Rac1 {[%clk 01:19:14]} {[%emt 00:01:01]} Rfd8 {[%clk
01:07:06]} {[%emt 00:00:12]} 14. Qb1 {[%clk 01:18:22]} {[%emt 00:01:20]} Qb8
{[%clk 01:06:02]} {[%emt 00:01:35]} 15. h3 {[%clk 01:10:33]} {[%emt 00:08:19]}
Qa8 {[%clk 01:00:44]} {[%emt 00:05:48]} 16. Bd3 {[%clk 01:09:32]} {[%emt
00:01:31]} h6 {[%clk 01:00:21]} {[%emt 00:00:53]} 17. Ne1 {[%clk 01:08:45]}
{[%emt 00:01:16]} Nb8 {[%clk 00:53:55]} {[%emt 00:06:56]} 18. f4 {[%clk
01:07:21]} {[%emt 00:01:54]} Nbd7 {[%clk 00:52:54]} {[%emt 00:01:32]} 19. Nf3
{[%clk 01:05:49]} {[%emt 00:02:02]} Kh8 {[%clk 00:47:23]} {[%emt 00:06:00]} 20.
Kf2 {[%clk 01:04:22]} {[%emt 00:01:56]} Qb8 {[%clk 00:45:32]} {[%emt 00:02:22]}
21. Rh1 {[%clk 01:03:41]} {[%emt 00:01:11]} e5 {[%clk 00:45:10]} {[%emt
00:00:52]} 22. d5 {[%clk 01:03:36]} {[%emt 00:00:35]} Nc5 {[%clk 00:44:17]}
{[%emt 00:01:23]} 23. f5 {[%clk 01:03:17]} {[%emt 00:00:49]} Nh7 {[%clk
00:42:34]} {[%emt 00:02:13]} 24. g4 {[%clk 01:01:51]} {[%emt 00:01:56]} f6
{[%clk 00:38:13]} {[%emt 00:04:51]} 25. h4 {[%clk 01:01:21]} {[%emt 00:01:00]}
Rg8 {[%clk 00:37:27]} {[%emt 00:01:16]} 26. g5 {[%clk 01:01:11]} {[%emt
00:00:40]} h5 {[%clk 00:36:10]} {[%emt 00:01:47]} 27. Rcg1 {[%clk 01:00:27]}
{[%emt 00:01:13]} Nxd3+ {[%clk 00:35:49]} {[%emt 00:00:52]} 28. Qxd3 {[%clk
01:00:51]} {[%emt 00:00:05]} g6 {[%clk 00:35:04]} {[%emt 00:01:15]} 29. Qd1
{[%clk 01:00:03]} {[%emt 00:01:17]} Rcf8 {[%clk 00:34:49]} {[%emt 00:00:46]} 30.
Nd2 {[%clk 00:58:40]} {[%emt 00:01:54]} Qe8 {[%clk 00:35:02]} {[%emt 00:00:17]}
31. Ke1 {[%clk 00:56:46]} {[%emt 00:02:23]} gxf5 {[%clk 00:31:46]} {[%emt
00:03:46]} 32. exf5 {[%clk 00:55:42]} {[%emt 00:01:35]} fxg5 {[%clk 00:32:05]}
{[%emt 00:00:11]} 33. hxg5 {[%clk 00:56:00]} {[%emt 00:00:11]} Rxf5 {[%clk
00:32:26]} {[%emt 00:00:09]} 34. Nde4 {[%clk 00:53:58]} {[%emt 00:02:32]} Qg6
{[%clk 00:30:52]} {[%emt 00:02:03]} 35. Qxh5 {[%clk 00:53:35]} {[%emt
00:00:53]} Qxh5 {[%clk 00:29:24]} {[%emt 00:01:59]} 36. Rxh5 {[%clk 00:53:55]}
{[%emt 00:00:10]} Rg6 {[%clk 00:29:51]} {[%emt 00:00:02]} 37. Rgh1 {[%clk
00:50:42]} {[%emt 00:03:42]} Rf7 {[%clk 00:28:25]} {[%emt 00:01:57]} 38. Rh6
{[%clk 00:48:17]} {[%emt 00:02:56]} Rfg7 {[%clk 00:26:53]} {[%emt 00:02:02]} 39.
Nf6 {[%clk 00:48:21]} {[%emt 00:00:25]} Rxh6 {[%clk 00:27:11]} {[%emt
00:00:12]} 40. Rxh6 {[%clk 00:46:37]} {[%emt 00:02:14]} Bxf6 {[%clk 00:27:03]}
{[%emt 00:00:38]} 41. gxf6 {[%clk 00:46:35]} {[%emt 00:00:32]} Rf7 {[%clk
00:27:25]} {[%emt 00:00:07]} 42. Ne4 {[%clk 00:46:32]} {[%emt 00:00:32]} Rd7
{[%clk 00:26:08]} {[%emt 00:01:49]} 43. Ng5 {[%clk 00:45:30]} {[%emt 00:01:31]}
Bxd5 {[%clk 00:25:43]} {[%emt 00:00:55]} 44. f7 {[%clk 00:45:32]} {[%emt
00:00:28]} Bxf7 {[%clk 00:25:46]} {[%emt 00:00:27]} 45. Rxh7+ {[%clk 00:44:22]}
{[%emt 00:01:40]} Kg8 {[%clk 00:26:08]} {[%emt 00:00:08]} 46. Rxf7 {[%clk
00:44:18]} {[%emt 00:00:35]} Rxf7 {[%clk 00:26:26]} {[%emt 00:00:12]} 47. Nxf7
{[%clk 00:44:45]} {[%emt 00:00:02]} Kxf7 {[%clk 00:26:55]} {[%emt 00:00:01]} 48.
Kd2 {[%clk 00:45:05]} {[%emt 00:00:10]} Ke6 {[%clk 00:27:18]} {[%emt 00:00:07]}
49. Kd3 {[%clk 00:45:14]} {[%emt 00:00:21]} d5 {[%clk 00:27:44]} {[%emt
00:00:04]} 50. a4 {[%clk 00:45:18]} {[%emt 00:00:26]} Kd6 {[%clk 00:27:17]}
{[%emt 00:00:57]} 51. b3 {[%clk 00:44:26]} {[%emt 00:01:22]} Ke6 {[%clk
00:27:19]} {[%emt 00:00:28]} 52. a5 {[%clk 00:44:35]} {[%emt 00:00:21]} d4
{[%clk 00:27:35]} {[%emt 00:00:14]} 53. axb6 {[%clk 00:44:22]} {[%emt
00:00:43]} 1/2-1/2

[Event "Mistrovství Čech mládeže 2023 - HD14"]
[Site "Harrachov, Czech Republic"]
[Date "2023.10.27"]
[Round "8.16"]
[White "Brabcová, Nikola"]
[Black "Malý, Jiří"]
[Result "0-1"]
[TimeControl "90m + 30s"]
[WhiteElo "1195"]
[BlackElo "1490"]

1. e4 {[%clk 01:30:51]} {[%emt 00:00:09]} e5 {[%clk 01:30:50]} {[%emt
00:00:10]} 2. Nc3 {[%clk 01:30:54]} {[%emt 00:00:27]} Nf6 {[%clk 01:31:01]}
{[%emt 00:00:19]} 3. f4 {[%clk 01:31:06]} {[%emt 00:00:18]} d5 {[%clk
01:31:02]} {[%emt 00:00:29]} 4. fxe5 {[%clk 01:31:05]} {[%emt 00:00:32]} Nxe4
{[%clk 01:31:02]} {[%emt 00:00:29]} 5. Qf3 {[%clk 01:30:56]} {[%emt 00:00:39]}
Nxc3 {[%clk 01:26:21]} {[%emt 00:05:11]} 6. bxc3 {[%clk 01:31:08]} {[%emt
00:00:18]} c6 {[%clk 01:22:30]} {[%emt 00:04:21]} 7. d4 {[%clk 01:29:46]}
{[%emt 00:01:52]} Be7 {[%clk 01:18:47]} {[%emt 00:04:14]} 8. Bd3 {[%clk
01:27:41]} {[%emt 00:02:35]} Bh4+ {[%clk 01:15:49]} {[%emt 00:03:27]} 9. g3
{[%clk 01:27:08]} {[%emt 00:01:03]} Be7 {[%clk 01:15:35]} {[%emt 00:00:44]} 10.
Ne2 {[%clk 01:24:39]} {[%emt 00:02:59]} Be6 {[%clk 01:03:52]} {[%emt 00:12:14]}
11. O-O {[%clk 01:21:13]} {[%emt 00:03:56]} Qd7 {[%clk 00:59:22]} {[%emt
00:05:00]} 12. Bf5 {[%clk 01:16:17]} {[%emt 00:05:26]} Bxf5 {[%clk 00:55:10]}
{[%emt 00:04:42]} 13. Qxf5 {[%clk 01:16:22]} {[%emt 00:00:25]} Qxf5 {[%clk
00:54:47]} {[%emt 00:00:53]} 14. Rxf5 {[%clk 01:16:43]} {[%emt 00:00:09]} O-O
{[%clk 00:53:02]} {[%emt 00:02:15]} 15. Rf3 {[%clk 01:14:08]} {[%emt 00:03:04]}
Nd7 {[%clk 00:51:08]} {[%emt 00:02:25]} 16. Bd2 {[%clk 01:11:28]} {[%emt
00:03:09]} c5 {[%clk 00:48:46]} {[%emt 00:02:52]} 17. Re1 {[%clk 01:07:27]}
{[%emt 00:04:30]} cxd4 {[%clk 00:45:00]} {[%emt 00:04:17]} 18. cxd4 {[%clk
01:07:31]} {[%emt 00:00:26]} Rac8 {[%clk 00:43:20]} {[%emt 00:02:10]} 19. c3
{[%clk 01:06:10]} {[%emt 00:01:51]} Nb6 {[%clk 00:42:12]} {[%emt 00:01:38]} 20.
Nf4 {[%clk 01:02:54]} {[%emt 00:03:47]} Rfd8 {[%clk 00:40:03]} {[%emt
00:02:39]} 21. Kg2 {[%clk 00:57:03]} {[%emt 00:06:20]} Nc4 {[%clk 00:34:20]}
{[%emt 00:06:13]} 22. Re2 {[%clk 00:53:13]} {[%emt 00:04:20]} Rc6 {[%clk
00:29:28]} {[%emt 00:05:22]} 23. h4 {[%clk 00:47:55]} {[%emt 00:05:48]} Ra6
{[%clk 00:24:39]} {[%emt 00:05:20]} 24. e6 {[%clk 00:39:35]} {[%emt 00:08:49]}
f6 {[%clk 00:23:28]} {[%emt 00:01:41]} 25. Bc1 {[%clk 00:37:35]} {[%emt
00:02:29]} Ra5 {[%clk 00:22:34]} {[%emt 00:01:25]} 26. Nh5 {[%clk 00:32:54]}
{[%emt 00:05:10]} Rd6 {[%clk 00:16:08]} {[%emt 00:06:56]} 27. g4 {[%clk
00:30:39]} {[%emt 00:02:45]} Rda6 {[%clk 00:12:56]} {[%emt 00:03:42]} 28. Kh3
{[%clk 00:27:08]} {[%emt 00:04:00]} Rxa2 {[%clk 00:08:34]} {[%emt 00:04:53]} 29.
Re1 {[%clk 00:26:41]} {[%emt 00:00:56]} Nd6 {[%clk 00:08:12]} {[%emt 00:00:52]}
30. g5 {[%clk 00:25:05]} {[%emt 00:02:06]} f5 {[%clk 00:07:53]} {[%emt
00:00:49]} 31. Re5 {[%clk 00:21:22]} {[%emt 00:04:12]} Rc2 {[%clk 00:06:00]}
{[%emt 00:02:22]} 32. Ng3 {[%clk 00:20:22]} {[%emt 00:01:31]} g6 {[%clk
00:04:47]} {[%emt 00:01:43]} 33. Ne2 {[%clk 00:18:09]} {[%emt 00:02:42]} Raa2
{[%clk 00:04:13]} {[%emt 00:01:04]} 34. Nf4 {[%clk 00:17:06]} {[%emt 00:01:32]}
Rxc1 {[%clk 00:03:21]} {[%emt 00:01:22]} 35. Nxd5 {[%clk 00:12:11]} {[%emt
00:05:25]} Rh1+ {[%clk 00:02:53]} {[%emt 00:00:57]} 36. Kg3 {[%clk 00:12:28]}
{[%emt 00:00:13]} Kf8 {[%clk 00:01:53]} {[%emt 00:01:30]} 37. c4 {[%clk
00:12:01]} {[%emt 00:00:57]} Ne4+ {[%clk 00:01:26]} {[%emt 00:00:57]} 38. Rxe4
{[%clk 00:11:55]} {[%emt 00:00:35]} Rg1+ {[%clk 00:01:36]} {[%emt 00:00:20]} 39.
Kh3 {[%clk 00:10:17]} {[%emt 00:02:08]} Rh1+ {[%clk 00:01:15]} {[%emt
00:00:52]} 40. Kg3 {[%clk 00:10:38]} {[%emt 00:00:08]} Bd6+ {[%clk 00:01:18]}
{[%emt 00:00:27]} 41. Ref4 {[%clk 00:09:53]} {[%emt 00:01:14]} Bxf4+ {[%clk
00:01:17]} {[%emt 00:00:33]} 42. Kxf4 {[%clk 00:08:42]} {[%emt 00:01:41]} Re1
{[%clk 00:01:11]} {[%emt 00:00:35]} 43. Re3 {[%clk 00:08:34]} {[%emt 00:00:38]}
Rf2+ {[%clk 00:00:43]} {[%emt 00:00:59]} 44. Rf3 {[%clk 00:08:40]} {[%emt
00:00:24]} Rxf3+ {[%clk 00:01:05]} {[%emt 00:00:08]} 45. Kxf3 {[%clk 00:08:44]}
{[%emt 00:00:26]} Rxe6 {[%clk 00:01:21]} {[%emt 00:00:13]} 46. Nf6 {[%clk
00:08:12]} {[%emt 00:01:02]} a5 {[%clk 00:01:05]} {[%emt 00:00:47]} 47. d5
{[%clk 00:08:36]} {[%emt 00:00:06]} Rxf6 {[%clk 00:00:47]} {[%emt 00:00:49]} 48.
gxf6 {[%clk 00:08:56]} {[%emt 00:00:10]} Kf7 {[%clk 00:01:03]} {[%emt
00:00:13]} 49. c5 {[%clk 00:08:13]} {[%emt 00:01:13]} Kxf6 {[%clk 00:01:20]}
{[%emt 00:00:13]} 50. Ke3 {[%clk 00:07:57]} {[%emt 00:00:47]} Ke7 {[%clk
00:01:40]} {[%emt 00:00:09]} 51. Kd4 {[%clk 00:07:51]} {[%emt 00:00:36]} f4
{[%clk 00:01:46]} {[%emt 00:00:24]} 52. Kc4 {[%clk 00:06:32]} {[%emt 00:01:49]}
Kd7 {[%clk 00:01:45]} {[%emt 00:00:31]} 53. Kb5 {[%clk 00:06:57]} {[%emt
00:00:05]} f3 {[%clk 00:01:54]} {[%emt 00:00:21]} 54. Kb6 {[%clk 00:07:02]}
{[%emt 00:00:25]} Kc8 {[%clk 00:01:43]} {[%emt 00:00:40]} 55. d6 {[%clk
00:06:41]} {[%emt 00:00:51]} f2 {[%clk 00:01:57]} {[%emt 00:00:16]} 56. d7+
{[%clk 00:06:07]} {[%emt 00:01:04]} Kxd7 {[%clk 00:02:10]} {[%emt 00:00:17]} 57.
Kxb7 {[%clk 00:06:31]} {[%emt 00:00:05]} f1=Q {[%clk 00:02:28]} {[%emt
00:00:13]} 58. c6 {[%clk 00:06:41]} {[%emt 00:00:20]} Kd6 {[%clk 00:02:43]}
{[%emt 00:00:15]} 59. h5 {[%clk 00:06:16]} {[%emt 00:00:55]} Qb5+ {[%clk
00:02:55]} {[%emt 00:00:18]} 60. Ka7 {[%clk 00:06:09]} {[%emt 00:00:37]} Kxc6
{[%clk 00:03:10]} {[%emt 00:00:15]} 61. h6 {[%clk 00:05:45]} {[%emt 00:00:53]}
Qb7# {[%clk 00:03:20]} {[%emt 00:00:20]} 0-1

[Event "Mistrovství Čech mládeže 2023 - HD14"]
[Site "Harrachov, Czech Republic"]
[Date "2023.10.28"]
[Round "9.1"]
[White "Váňa, Jan"]
[Black "Švadlenka, Dominik"]
[Result "1-0"]
[TimeControl "90m + 30s"]
[WhiteElo "1969"]
[BlackElo "1710"]

1. e4 {[%clk 01:30:57]} {[%emt 00:00:02]} c6 {[%clk 01:30:58]} {[%emt
00:00:03]} 2. d4 {[%clk 01:31:19]} {[%emt 00:00:08]} d5 {[%clk 01:31:24]}
{[%emt 00:00:04]} 3. e5 {[%clk 01:31:40]} {[%emt 00:00:08]} c5 {[%clk
01:31:50]} {[%emt 00:00:04]} 4. dxc5 {[%clk 01:31:27]} {[%emt 00:00:43]} e6
{[%clk 01:32:15]} {[%emt 00:00:05]} 5. Be3 {[%clk 01:31:19]} {[%emt 00:00:38]}
Nd7 {[%clk 01:32:38]} {[%emt 00:00:07]} 6. Bb5 {[%clk 01:30:40]} {[%emt
00:01:09]} Ne7 {[%clk 01:32:46]} {[%emt 00:00:22]} 7. Bd4 {[%clk 01:29:00]}
{[%emt 00:02:10]} Nc6 {[%clk 01:32:46]} {[%emt 00:00:31]} 8. Bxc6 {[%clk
01:29:15]} {[%emt 00:00:15]} bxc6 {[%clk 01:33:12]} {[%emt 00:00:04]} 9. b4
{[%clk 01:29:37]} {[%emt 00:00:08]} a5 {[%clk 01:33:32]} {[%emt 00:00:10]} 10.
a3 {[%clk 01:29:47]} {[%emt 00:00:21]} axb4 {[%clk 01:33:37]} {[%emt 00:00:25]}
11. axb4 {[%clk 01:30:08]} {[%emt 00:00:09]} Rxa1 {[%clk 01:34:01]} {[%emt
00:00:05]} 12. Bxa1 {[%clk 01:30:34]} {[%emt 00:00:04]} Ba6 {[%clk 01:34:11]}
{[%emt 00:00:20]} 13. Nf3 {[%clk 01:30:11]} {[%emt 00:00:52]} Qb8 {[%clk
01:34:04]} {[%emt 00:00:38]} 14. Bc3 {[%clk 01:26:36]} {[%emt 00:04:04]} Be7
{[%clk 01:33:32]} {[%emt 00:01:02]} 15. Qc1 {[%clk 01:02:40]} {[%emt 00:24:26]}
O-O {[%clk 01:29:32]} {[%emt 00:04:31]} 16. Kd1 {[%clk 00:49:04]} {[%emt
00:14:07]} d4 {[%clk 01:17:29]} {[%emt 00:12:33]} 17. Nxd4 {[%clk 00:47:20]}
{[%emt 00:02:13]} Qxe5 {[%clk 01:16:55]} {[%emt 00:01:04]} 18. Qe3 {[%clk
00:46:44]} {[%emt 00:01:06]} Qd5 {[%clk 01:09:40]} {[%emt 00:07:47]} 19. Qf3
{[%clk 00:33:51]} {[%emt 00:13:22]} e5 {[%clk 00:59:43]} {[%emt 00:10:27]} 20.
Qxd5 {[%clk 00:32:46]} {[%emt 00:01:36]} cxd5 {[%clk 01:00:06]} {[%emt
00:00:07]} 21. Nc6 {[%clk 00:19:55]} {[%emt 00:13:20]} Bf6 {[%clk 01:00:14]}
{[%emt 00:00:22]} 22. f4 {[%clk 00:18:36]} {[%emt 00:01:50]} exf4 {[%clk
00:56:23]} {[%emt 00:04:21]} 23. Bxf6 {[%clk 00:15:51]} {[%emt 00:03:14]} Nxf6
{[%clk 00:56:31]} {[%emt 00:00:22]} 24. Kc1 {[%clk 00:11:18]} {[%emt 00:05:03]}
Re8 {[%clk 00:52:47]} {[%emt 00:04:14]} 25. Nc3 {[%clk 00:08:47]} {[%emt
00:03:01]} Bc4 {[%clk 00:48:35]} {[%emt 00:04:42]} 26. Kb2 {[%clk 00:04:09]}
{[%emt 00:05:08]} Ne4 {[%clk 00:43:47]} {[%emt 00:05:19]} 27. Ra1 {[%clk
00:02:58]} {[%emt 00:01:41]} g5 {[%clk 00:41:46]} {[%emt 00:02:31]} 28. Nd4
{[%clk 00:00:48]} {[%emt 00:02:40]} g4 {[%clk 00:29:46]} {[%emt 00:12:29]} 29.
c6 {[%clk 00:00:43]} {[%emt 00:00:35]} Ng5 {[%clk 00:28:05]} {[%emt 00:02:11]}
30. Nf5 {[%clk 00:00:38]} {[%emt 00:00:35]} f3 {[%clk 00:16:51]} {[%emt
00:11:44]} 31. gxf3 {[%clk 00:00:59]} {[%emt 00:00:09]} gxf3 {[%clk 00:17:02]}
{[%emt 00:00:18]} 32. Nd6 {[%clk 00:00:44]} {[%emt 00:00:45]} Rf8 {[%clk
00:11:01]} {[%emt 00:06:31]} 33. Nxc4 {[%clk 00:00:34]} {[%emt 00:00:39]} dxc4
{[%clk 00:11:07]} {[%emt 00:00:25]} 34. Nd5 {[%clk 00:00:55]} {[%emt 00:00:09]}
Ne4 {[%clk 00:09:22]} {[%emt 00:02:14]} 35. c7 {[%clk 00:00:34]} {[%emt
00:00:51]} Re8 {[%clk 00:05:01]} {[%emt 00:04:51]} 36. c8=Q {[%clk 00:00:35]}
{[%emt 00:00:29]} Rxc8 {[%clk 00:05:19]} {[%emt 00:00:11]} 37. Ne7+ {[%clk
00:01:02]} {[%emt 00:00:03]} Kf8 {[%clk 00:05:39]} {[%emt 00:00:10]} 38. Nxc8
{[%clk 00:01:28]} {[%emt 00:00:04]} c3+ {[%clk 00:05:54]} {[%emt 00:00:15]} 39.
Ka3 {[%clk 00:00:34]} {[%emt 00:01:24]} Nd2 {[%clk 00:05:50]} {[%emt 00:00:34]}
40. b5 {[%clk 00:00:47]} {[%emt 00:00:17]} Ke8 {[%clk 00:03:15]} {[%emt
00:03:04]} 41. Nd6+ {[%clk 00:00:57]} {[%emt 00:00:21]} Kd7 {[%clk 00:03:39]}
{[%emt 00:00:06]} 42. Ne4 {[%clk 00:00:38]} {[%emt 00:00:48]} Nxe4 {[%clk
00:03:48]} {[%emt 00:00:21]} 43. Kb4 {[%clk 00:00:51]} {[%emt 00:00:18]} f2
{[%clk 00:03:21]} {[%emt 00:00:57]} 44. Rf1 {[%clk 00:00:37]} {[%emt 00:00:44]}
Kc7 {[%clk 00:03:29]} {[%emt 00:00:22]} 45. Ka5 {[%clk 00:00:36]} {[%emt
00:00:31]} Kb7 {[%clk 00:03:41]} {[%emt 00:00:18]} 46. b6 {[%clk 00:00:42]}
{[%emt 00:00:24]} f5 {[%clk 00:02:55]} {[%emt 00:01:16]} 47. Kb5 {[%clk
00:00:34]} {[%emt 00:00:38]} h5 {[%clk 00:03:16]} {[%emt 00:00:08]} 48. Ka5
{[%clk 00:00:38]} {[%emt 00:00:26]} h4 {[%clk 00:03:28]} {[%emt 00:00:18]} 49.
Kb5 {[%clk 00:00:40]} {[%emt 00:00:27]} h3 {[%clk 00:03:35]} {[%emt 00:00:23]}
50. Ka5 {[%clk 00:00:51]} {[%emt 00:00:20]} f4 {[%clk 00:03:54]} {[%emt
00:00:10]} 51. Kb5 {[%clk 00:01:04]} {[%emt 00:00:18]} f3 {[%clk 00:02:43]}
{[%emt 00:01:41]} 52. Ka5 {[%clk 00:01:16]} {[%emt 00:00:18]} Nd2 {[%clk
00:01:02]} {[%emt 00:02:12]} 53. Rxf2 {[%clk 00:01:32]} {[%emt 00:00:13]} Nc4+
{[%clk 00:00:42]} {[%emt 00:00:50]} 54. Kb4 {[%clk 00:01:11]} {[%emt 00:00:52]}
Nd2 {[%clk 00:01:04]} {[%emt 00:00:07]} 55. Kb5 {[%clk 00:01:27]} {[%emt
00:00:14]} Kb8 {[%clk 00:00:53]} {[%emt 00:00:42]} 56. Kc6 {[%clk 00:01:17]}
{[%emt 00:00:40]} Kc8 {[%clk 00:01:18]} {[%emt 00:00:05]} 57. b7+ {[%clk
00:00:39]} {[%emt 00:01:08]} Kb8 {[%clk 00:01:43]} {[%emt 00:00:04]} 58. Kb6
{[%clk 00:00:47]} {[%emt 00:00:22]} Nc4+ {[%clk 00:01:56]} {[%emt 00:00:16]} 59.
Kc5 {[%clk 00:01:01]} {[%emt 00:00:16]} Nd2 {[%clk 00:02:11]} {[%emt 00:00:15]}
60. Kc6 {[%clk 00:00:40]} {[%emt 00:00:52]} Nc4 {[%clk 00:02:36]} {[%emt
00:00:05]} 61. Kb5 {[%clk 00:00:33]} {[%emt 00:00:37]} Nd2 {[%clk 00:02:58]}
{[%emt 00:00:08]} 62. Ka6 {[%clk 00:00:50]} {[%emt 00:00:13]} 1-0

[Event "Mistrovství Čech mládeže 2023 - HD14"]
[Site "Harrachov, Czech Republic"]
[Date "2023.10.28"]
[Round "9.2"]
[White "Roubal, Matyáš"]
[Black "Topenčík, Bruno"]
[Result "1/2-1/2"]
[TimeControl "90m + 30s"]
[WhiteElo "1884"]
[BlackElo "1832"]

1. e4 {[%clk 01:30:58]} e6 {[%clk 01:30:56]} {[%emt 00:00:05]} 2. d4 {[%clk
01:31:23]} {[%emt 00:00:05]} d5 {[%clk 01:31:23]} {[%emt 00:00:03]} 3. Nc3
{[%clk 01:31:39]} {[%emt 00:00:13]} Nc6 {[%clk 01:31:41]} {[%emt 00:00:12]} 4.
Nge2 {[%clk 01:28:46]} {[%emt 00:03:23]} Be7 {[%clk 01:26:16]} {[%emt
00:05:55]} 5. g3 {[%clk 01:27:07]} {[%emt 00:02:09]} dxe4 {[%clk 01:25:33]}
{[%emt 00:01:13]} 6. Nxe4 {[%clk 01:27:24]} {[%emt 00:00:14]} Nf6 {[%clk
01:25:41]} {[%emt 00:00:22]} 7. Bg2 {[%clk 01:26:19]} {[%emt 00:01:35]} O-O
{[%clk 01:24:59]} {[%emt 00:01:12]} 8. O-O {[%clk 01:26:33]} {[%emt 00:00:16]}
Rb8 {[%clk 01:22:02]} {[%emt 00:03:27]} 9. c4 {[%clk 01:23:50]} {[%emt
00:03:13]} Nxe4 {[%clk 01:20:53]} {[%emt 00:01:39]} 10. Bxe4 {[%clk 01:24:18]}
{[%emt 00:00:02]} Bf6 {[%clk 01:20:51]} {[%emt 00:00:32]} 11. Be3 {[%clk
01:24:26]} {[%emt 00:00:22]} Ne7 {[%clk 01:20:16]} {[%emt 00:01:05]} 12. Nc3
{[%clk 01:21:53]} {[%emt 00:03:03]} Nf5 {[%clk 01:17:20]} {[%emt 00:03:25]} 13.
Bxf5 {[%clk 01:22:20]} {[%emt 00:00:04]} exf5 {[%clk 01:17:43]} {[%emt
00:00:07]} 14. Nd5 {[%clk 01:22:48]} {[%emt 00:00:03]} c6 {[%clk 01:15:47]}
{[%emt 00:02:26]} 15. Bf4 {[%clk 01:20:32]} {[%emt 00:02:46]} Ra8 {[%clk
01:14:57]} {[%emt 00:01:20]} 16. Bc7 {[%clk 01:20:58]} {[%emt 00:00:04]} Qd7
{[%clk 01:14:23]} {[%emt 00:01:05]} 17. Nxf6+ {[%clk 01:21:24]} {[%emt
00:00:04]} gxf6 {[%clk 01:14:47]} {[%emt 00:00:05]} 18. Ba5 {[%clk 01:20:03]}
{[%emt 00:01:51]} f4 {[%clk 01:10:42]} {[%emt 00:04:35]} 19. Bc3 {[%clk
01:17:35]} {[%emt 00:02:59]} Qh3 {[%clk 01:04:04]} {[%emt 00:07:07]} 20. Qf3
{[%clk 01:15:51]} {[%emt 00:02:15]} Qg4 {[%clk 01:03:07]} {[%emt 00:01:26]} 21.
Qxf4 {[%clk 01:14:07]} {[%emt 00:02:14]} Qxf4 {[%clk 01:02:08]} {[%emt
00:01:30]} 22. gxf4 {[%clk 01:14:35]} {[%emt 00:00:02]} Bh3 {[%clk 01:01:44]}
{[%emt 00:00:54]} 23. Rfe1 {[%clk 01:14:41]} {[%emt 00:00:24]} Kh8 {[%clk
01:01:23]} {[%emt 00:00:51]} 24. Re3 {[%clk 01:13:59]} {[%emt 00:01:12]} Rg8+
{[%clk 00:58:58]} {[%emt 00:02:55]} 25. Rg3 {[%clk 01:14:26]} {[%emt 00:00:04]}
Rae8 {[%clk 00:58:36]} {[%emt 00:00:51]} 26. d5 {[%clk 01:11:53]} {[%emt
00:03:03]} Rxg3+ {[%clk 00:58:28]} {[%emt 00:00:38]} 27. fxg3 {[%clk 01:12:14]}
{[%emt 00:00:09]} Kg7 {[%clk 00:58:24]} {[%emt 00:00:33]} 28. dxc6 {[%clk
01:11:03]} {[%emt 00:01:41]} bxc6 {[%clk 00:57:46]} {[%emt 00:01:08]} 29. Kf2
{[%clk 01:11:23]} {[%emt 00:00:09]} Kg6 {[%clk 00:52:48]} {[%emt 00:05:28]} 30.
Rd1 {[%clk 01:10:05]} {[%emt 00:01:47]} Bg4 {[%clk 00:52:35]} {[%emt 00:00:43]}
31. Rd6 {[%clk 01:08:31]} {[%emt 00:02:05]} Re6 {[%clk 00:52:20]} {[%emt
00:00:44]} 32. Rxe6 {[%clk 01:07:42]} {[%emt 00:01:19]} Bxe6 {[%clk 00:47:54]}
{[%emt 00:04:55]} 33. b3 {[%clk 01:08:10]} {[%emt 00:00:03]} Bf5 {[%clk
00:48:13]} {[%emt 00:00:12]} 34. a3 {[%clk 01:07:56]} {[%emt 00:00:45]} Bc2
{[%clk 00:47:53]} {[%emt 00:00:49]} 35. b4 {[%clk 01:08:21]} {[%emt 00:00:05]}
Bd3 {[%clk 00:48:14]} {[%emt 00:00:08]} 36. c5 {[%clk 01:08:27]} {[%emt
00:00:24]} Kf5 {[%clk 00:47:56]} {[%emt 00:00:49]} 37. Ke3 {[%clk 01:08:33]}
{[%emt 00:00:23]} Bb5 {[%clk 00:46:28]} {[%emt 00:01:57]} 38. Kf3 {[%clk
01:08:07]} {[%emt 00:00:56]} Ke6 {[%clk 00:42:17]} {[%emt 00:04:42]} 39. Kg4
{[%clk 01:07:49]} {[%emt 00:00:48]} Be2+ {[%clk 00:42:36]} {[%emt 00:00:10]} 40.
Kh4 {[%clk 01:08:13]} {[%emt 00:00:07]} a6 {[%clk 00:39:50]} {[%emt 00:03:16]}
41. g4 {[%clk 01:04:02]} {[%emt 00:04:41]} f5 {[%clk 00:38:59]} {[%emt
00:01:21]} 42. Kg5 {[%clk 00:56:51]} {[%emt 00:07:41]} fxg4 {[%clk 00:36:09]}
{[%emt 00:03:20]} 43. f5+ {[%clk 00:56:23]} {[%emt 00:00:58]} Kd5 {[%clk
00:36:05]} {[%emt 00:00:33]} 44. Kf6 {[%clk 00:50:35]} {[%emt 00:06:19]} Ke4
{[%clk 00:35:46]} {[%emt 00:00:47]} 45. Kg5 {[%clk 00:50:38]} {[%emt 00:00:29]}
1/2-1/2